[Event "*** Titled Tuesday Blitz"]
[Site "Chess.com"]
[Date "2020.10.20"]
[Round "4"]
[White "Kaslask"]
[Black "alejanchess73"]
[Result "0-1"]
[WhiteElo "2297"]
[BlackElo "2442"]
[TimeControl "180+1"]
[EndTime "10:41:36 PDT"]
[Termination "alejanchess73 won on time"]

1. d4 {[%clk 0:03:00.9]} 1... Nf6 {[%clk 0:02:59.1]} 2. c4 {[%clk 0:03:00.5]}
2... g6 {[%clk 0:02:59.5]} 3. Nc3 {[%clk 0:03:00.1]} 3... d5 {[%clk 0:02:58.4]}
4. cxd5 {[%clk 0:02:59.2]} 4... Nxd5 {[%clk 0:02:58.5]} 5. Bd2 {[%clk
0:02:59.3]} 5... Bg7 {[%clk 0:02:58.1]} 6. e4 {[%clk 0:02:59.1]} 6... Nb6 {[%clk
0:02:58.1]} 7. Be3 {[%clk 0:02:56.9]} 7... O-O {[%clk 0:02:58.3]} 8. f4 {[%clk
0:02:56.6]} 8... f5 {[%clk 0:02:45.2]} 9. e5 {[%clk 0:02:51.8]} 9... c6 {[%clk
0:02:39.7]} 10. Nf3 {[%clk 0:02:48.8]} 10... Be6 {[%clk 0:02:37.7]} 11. Be2
{[%clk 0:02:41.4]} 11... h6 {[%clk 0:02:35.1]} 12. O-O {[%clk 0:02:37.8]} 12...
Nc4 {[%clk 0:02:34.4]} 13. Bc1 {[%clk 0:02:26.4]} 13... b5 {[%clk 0:02:32.1]}
14. b3 {[%clk 0:02:25.3]} 14... Nb6 {[%clk 0:02:31.8]} 15. Ba3 {[%clk
0:02:22.9]} 15... a5 {[%clk 0:02:28.2]} 16. Bc5 {[%clk 0:02:17.9]} 16... N8d7
{[%clk 0:02:27.5]} 17. Qc2 {[%clk 0:02:11.2]} 17... Nxc5 {[%clk 0:02:22.5]} 18.
dxc5 {[%clk 0:02:10.5]} 18... Nd5 {[%clk 0:02:23.1]} 19. Nxd5 {[%clk 0:02:08.8]}
19... Bxd5 {[%clk 0:02:22.9]} 20. Rad1 {[%clk 0:02:07.6]} 20... e6 {[%clk
0:02:23]} 21. Nd4 {[%clk 0:02:03.5]} 21... Qe7 {[%clk 0:02:11.9]} 22. Bf3 {[%clk
0:02:02]} 22... Rac8 {[%clk 0:01:45.6]} 23. Bxd5 {[%clk 0:01:58.7]} 23... cxd5
{[%clk 0:01:45.9]} 24. Rc1 {[%clk 0:01:52.2]} 24... g5 {[%clk 0:01:45.3]} 25. g3
{[%clk 0:01:50.1]} 25... b4 {[%clk 0:01:44.6]} 26. c6 {[%clk 0:01:48.4]} 26...
Rf7 {[%clk 0:01:30.7]} 27. Qc5 {[%clk 0:01:44.7]} 27... Qe8 {[%clk 0:01:03.5]}
28. Nb5 {[%clk 0:01:32.5]} 28... Bf8 {[%clk 0:01:00.9]} 29. Nd6 {[%clk 0:01:29]}
29... Qd8 {[%clk 0:00:51.4]} 30. Kh1 {[%clk 0:01:20.2]} 30... Rfc7 {[%clk
0:00:47.8]} 31. g4 {[%clk 0:00:58.3]} 31... Rxc6 {[%clk 0:00:46]} 32. Qxc6
{[%clk 0:00:58.3]} 32... Rxc6 {[%clk 0:00:46.2]} 33. Rxc6 {[%clk 0:00:58.3]}
33... fxg4 {[%clk 0:00:39]} 34. f5 {[%clk 0:00:52.9]} 34... Bxd6 {[%clk
0:00:29.9]} 35. exd6 {[%clk 0:00:48.6]} 35... exf5 {[%clk 0:00:24.6]} 36. Re1
{[%clk 0:00:43.6]} 36... d4 {[%clk 0:00:20.3]} 37. Rec1 {[%clk 0:00:36.8]} 37...
Qa8 {[%clk 0:00:18.9]} 38. Kg1 {[%clk 0:00:35.1]} 38... Kg7 {[%clk 0:00:18.5]}
39. d7 {[%clk 0:00:31.2]} 39... d3 {[%clk 0:00:16.7]} 40. Rd6 {[%clk 0:00:30.7]}
40... Qa7+ {[%clk 0:00:15.4]} 41. Kf1 {[%clk 0:00:26.3]} 41... Qe3 {[%clk
0:00:14.8]} 42. Re1 {[%clk 0:00:19.6]} 42... Qf4+ {[%clk 0:00:13.4]} 43. Kg1
{[%clk 0:00:19.2]} 43... Qxd6 {[%clk 0:00:14]} 0-1

[Event "*** Titled Tuesday Blitz"]
[Site "Chess.com"]
[Date "2020.10.20"]
[Round "4"]
[White "MVM2008"]
[Black "LastHeroJr"]
[Result "1-0"]
[WhiteElo "2144"]
[BlackElo "2376"]
[TimeControl "180+1"]
[EndTime "10:41:36 PDT"]
[Termination "MVM2008 won on time"]

1. d4 {[%clk 0:03:00.9]} 1... Nf6 {[%clk 0:02:49.2]} 2. Nf3 {[%clk 0:02:59.2]}
2... g6 {[%clk 0:02:49.4]} 3. g3 {[%clk 0:02:54.2]} 3... Bg7 {[%clk 0:02:48.7]}
4. Bg2 {[%clk 0:02:52.9]} 4... O-O {[%clk 0:02:45.9]} 5. O-O {[%clk 0:02:47]}
5... d6 {[%clk 0:02:46.2]} 6. b3 {[%clk 0:02:44.7]} 6... c5 {[%clk 0:02:45.9]}
7. Bb2 {[%clk 0:02:34.3]} 7... cxd4 {[%clk 0:02:45.9]} 8. Nxd4 {[%clk
0:02:32.3]} 8... d5 {[%clk 0:02:46.2]} 9. Nf3 {[%clk 0:02:27]} 9... Nc6 {[%clk
0:02:43.3]} 10. Nbd2 {[%clk 0:02:21.8]} 10... Re8 {[%clk 0:02:31.8]} 11. Ne5
{[%clk 0:01:57.2]} 11... Qc7 {[%clk 0:02:28.4]} 12. Nxc6 {[%clk 0:01:47.1]}
12... bxc6 {[%clk 0:02:29.3]} 13. c4 {[%clk 0:01:36.7]} 13... e5 {[%clk
0:02:24.4]} 14. cxd5 {[%clk 0:01:28.1]} 14... cxd5 {[%clk 0:02:25.3]} 15. Rc1
{[%clk 0:01:20.2]} 15... Qe7 {[%clk 0:02:01.6]} 16. Nc4 {[%clk 0:01:16]} 16...
e4 {[%clk 0:01:31.3]} 17. Bxf6 {[%clk 0:01:10.9]} 17... Bxf6 {[%clk 0:01:24.4]}
18. Qxd5 {[%clk 0:01:10.4]} 18... Bg4 {[%clk 0:00:49.2]} 19. Nd6 {[%clk
0:00:48.9]} 19... Rad8 {[%clk 0:00:42.7]} 20. Qxe4 {[%clk 0:00:39.2]} 20... Rxd6
{[%clk 0:00:21.8]} 21. Qxg4 {[%clk 0:00:38.6]} 21... Qxe2 {[%clk 0:00:22.4]} 22.
Qxe2 {[%clk 0:00:33.7]} 22... Rxe2 {[%clk 0:00:23.3]} 23. a4 {[%clk 0:00:29.8]}
23... Rdd2 {[%clk 0:00:22.9]} 24. Bf3 {[%clk 0:00:20.6]} 24... Re8 {[%clk
0:00:17.4]} 25. Rfd1 {[%clk 0:00:16.9]} 25... Red8 {[%clk 0:00:14.9]} 26. Rxd2
{[%clk 0:00:15.9]} 26... Rxd2 {[%clk 0:00:15.8]} 27. Rd1 {[%clk 0:00:12.4]}
27... Rb2 {[%clk 0:00:15.3]} 28. Rd3 {[%clk 0:00:12.1]} 28... Be7 {[%clk
0:00:12.6]} 29. Bd5 {[%clk 0:00:12]} 29... Bc5 {[%clk 0:00:12.7]} 30. Rf3 {[%clk
0:00:11.9]} 30... Kg7 {[%clk 0:00:08.9]} 31. Rxf7+ {[%clk 0:00:12.1]} 31... Kh6
{[%clk 0:00:09.3]} 32. Bc4 {[%clk 0:00:12.7]} 32... Rc2 {[%clk 0:00:06.3]} 33.
Kg2 {[%clk 0:00:12.1]} 33... g5 {[%clk 0:00:05.1]} 34. Rf6+ {[%clk 0:00:11.1]}
34... Kg7 {[%clk 0:00:05.6]} 35. Rf5 {[%clk 0:00:10.7]} 35... Be7 {[%clk
0:00:05.2]} 36. Ra5 {[%clk 0:00:10.2]} 36... Kf6 {[%clk 0:00:02.9]} 37. Ra6+
{[%clk 0:00:10]} 37... Ke5 {[%clk 0:00:02.2]} 38. Re6+ {[%clk 0:00:09.4]} 1-0

[Event "*** Titled Tuesday Blitz"]
[Site "Chess.com"]
[Date "2020.10.20"]
[Round "4"]
[White "baki83"]
[Black "Illingworth"]
[Result "1-0"]
[WhiteElo "2756"]
[BlackElo "2897"]
[TimeControl "180+1"]
[EndTime "10:41:37 PDT"]
[Termination "baki83 won by checkmate"]

1. e4 {[%clk 0:03:00.9]} 1... e5 {[%clk 0:02:58.6]} 2. Nf3 {[%clk 0:03:00.2]}
2... Nc6 {[%clk 0:02:58.9]} 3. Bb5 {[%clk 0:03:00.1]} 3... a6 {[%clk 0:02:58.9]}
4. Ba4 {[%clk 0:03:00.1]} 4... Nf6 {[%clk 0:02:59.3]} 5. d3 {[%clk 0:02:59.7]}
5... b5 {[%clk 0:02:59]} 6. Bb3 {[%clk 0:02:59.4]} 6... Bc5 {[%clk 0:02:59.3]}
7. Nc3 {[%clk 0:02:55.6]} 7... d6 {[%clk 0:02:59.1]} 8. a4 {[%clk 0:02:51.7]}
8... Rb8 {[%clk 0:02:44.1]} 9. axb5 {[%clk 0:02:51]} 9... axb5 {[%clk 0:02:45]}
10. h3 {[%clk 0:02:42.6]} 10... h6 {[%clk 0:02:44.2]} 11. Be3 {[%clk 0:02:34.1]}
11... O-O {[%clk 0:02:37]} 12. g4 {[%clk 0:02:25.2]} 12... Bxe3 {[%clk
0:02:26.5]} 13. fxe3 {[%clk 0:02:26.1]} 13... b4 {[%clk 0:02:16.8]} 14. Ne2
{[%clk 0:02:23]} 14... Nh7 {[%clk 0:02:08]} 15. Ng3 {[%clk 0:02:21.4]} 15... Ne7
{[%clk 0:02:08]} 16. Nf5 {[%clk 0:02:13.2]} 16... Be6 {[%clk 0:02:00.3]} 17. O-O
{[%clk 0:02:07.1]} 17... Bxb3 {[%clk 0:02:00]} 18. cxb3 {[%clk 0:02:06.8]} 18...
c5 {[%clk 0:01:55.9]} 19. Kh2 {[%clk 0:02:05]} 19... Nxf5 {[%clk 0:01:40.6]} 20.
gxf5 {[%clk 0:02:03]} 20... Kh8 {[%clk 0:01:40.5]} 21. Rg1 {[%clk 0:01:54.8]}
21... Nf6 {[%clk 0:01:39.2]} 22. Qe1 {[%clk 0:01:50]} 22... Rg8 {[%clk
0:01:38.4]} 23. Qh4 {[%clk 0:01:49.2]} 23... Ra8 {[%clk 0:01:34.4]} 24. Raf1
{[%clk 0:01:25.1]} 24... Qe7 {[%clk 0:01:07]} 25. Rg2 {[%clk 0:01:21.5]} 25...
Ra7 {[%clk 0:00:49.2]} 26. Rfg1 {[%clk 0:01:21.3]} 26... Rd7 {[%clk 0:00:42.2]}
27. Nd2 {[%clk 0:01:01.3]} 27... d5 {[%clk 0:00:38.7]} 28. exd5 {[%clk
0:01:01.3]} 28... Rxd5 {[%clk 0:00:36]} 29. Ne4 {[%clk 0:01:00.7]} 29... Rdd8
{[%clk 0:00:31.5]} 30. Nxf6 {[%clk 0:00:27.1]} 30... Qxf6 {[%clk 0:00:31.3]} 31.
Qxf6 {[%clk 0:00:26.5]} 31... gxf6 {[%clk 0:00:32.2]} 32. Rxg8+ {[%clk
0:00:26.4]} 32... Rxg8 {[%clk 0:00:33.1]} 33. Rxg8+ {[%clk 0:00:26.6]} 33...
Kxg8 {[%clk 0:00:34]} 34. Kg3 {[%clk 0:00:27]} 34... Kf8 {[%clk 0:00:33.3]} 35.
Kg4 {[%clk 0:00:27.4]} 35... Kg7 {[%clk 0:00:09.7]} 36. Kf3 {[%clk 0:00:27.2]}
36... h5 {[%clk 0:00:10.3]} 37. h4 {[%clk 0:00:24.9]} 37... Kf8 {[%clk
0:00:10.5]} 38. Ke4 {[%clk 0:00:25.1]} 38... Ke7 {[%clk 0:00:11.4]} 39. Kd5
{[%clk 0:00:25.6]} 39... e4 {[%clk 0:00:11.5]} 40. dxe4 {[%clk 0:00:24.8]} 40...
Kd7 {[%clk 0:00:12.1]} 41. Kxc5 {[%clk 0:00:24.7]} 41... Kc7 {[%clk 0:00:13]}
42. Kxb4 {[%clk 0:00:24]} 42... Kd6 {[%clk 0:00:13.9]} 43. Kc4 {[%clk
0:00:23.7]} 43... Ke5 {[%clk 0:00:14.8]} 44. b4 {[%clk 0:00:24.4]} 44... Kxe4
{[%clk 0:00:14.3]} 45. b5 {[%clk 0:00:25.3]} 45... Kxf5 {[%clk 0:00:14.6]} 46.
Kd5 {[%clk 0:00:24.7]} 46... Kg4 {[%clk 0:00:15.5]} 47. b6 {[%clk 0:00:25.4]}
47... Kxh4 {[%clk 0:00:15.9]} 48. b7 {[%clk 0:00:26.3]} 48... Kg4 {[%clk
0:00:16.5]} 49. b8=Q {[%clk 0:00:27.2]} 49... Kf5 {[%clk 0:00:16.8]} 50. Qh8
{[%clk 0:00:28]} 50... Kg6 {[%clk 0:00:17.7]} 51. b4 {[%clk 0:00:27.9]} 51... f5
{[%clk 0:00:17.7]} 52. b5 {[%clk 0:00:28.8]} 52... f4 {[%clk 0:00:18.3]} 53. b6
{[%clk 0:00:29.7]} 53... fxe3 {[%clk 0:00:18.9]} 54. Qg8+ {[%clk 0:00:29.3]}
54... Kf5 {[%clk 0:00:19.1]} 55. Qe8 {[%clk 0:00:29.4]} 55... Kf4 {[%clk
0:00:19.3]} 56. Qe4+ {[%clk 0:00:29.6]} 56... Kg3 {[%clk 0:00:19.7]} 57. Qxe3+
{[%clk 0:00:30.5]} 57... Kg4 {[%clk 0:00:20.4]} 58. b7 {[%clk 0:00:31.4]} 58...
f5 {[%clk 0:00:21.3]} 59. b8=Q {[%clk 0:00:32.3]} 59... h4 {[%clk 0:00:21.9]}
60. Qbf4+ {[%clk 0:00:32.7]} 60... Kh5 {[%clk 0:00:22.8]} 61. Qg5# {[%clk
0:00:33.5]} 1-0

[Event "*** Titled Tuesday Blitz"]
[Site "Chess.com"]
[Date "2020.10.20"]
[Round "4"]
[White "Lagmantr"]
[Black "rynos0411"]
[Result "1-0"]
[WhiteElo "2732"]
[BlackElo "2499"]
[TimeControl "180+1"]
[EndTime "10:41:37 PDT"]
[Termination "Lagmantr won by resignation"]

1. Nf3 {[%clk 0:02:58.5]} 1... Nf6 {[%clk 0:02:59.6]} 2. c4 {[%clk 0:02:59]}
2... c6 {[%clk 0:02:59.2]} 3. g3 {[%clk 0:02:57.5]} 3... d5 {[%clk 0:02:59.3]}
4. Bg2 {[%clk 0:02:58.1]} 4... e6 {[%clk 0:02:59.4]} 5. O-O {[%clk 0:02:58.6]}
5... Bd6 {[%clk 0:02:59.3]} 6. b3 {[%clk 0:02:58.7]} 6... O-O {[%clk 0:02:59.4]}
7. Bb2 {[%clk 0:02:58.9]} 7... Nbd7 {[%clk 0:02:59.4]} 8. d4 {[%clk 0:02:57.9]}
8... Re8 {[%clk 0:02:55.6]} 9. Nbd2 {[%clk 0:02:57.4]} 9... Qe7 {[%clk
0:02:55.3]} 10. Qc2 {[%clk 0:02:49.2]} 10... e5 {[%clk 0:02:53.8]} 11. e4 {[%clk
0:02:48.8]} 11... dxe4 {[%clk 0:02:44.4]} 12. Nxe4 {[%clk 0:02:40]} 12... Nxe4
{[%clk 0:02:43.4]} 13. Qxe4 {[%clk 0:02:38.4]} 13... Nf6 {[%clk 0:02:43.7]} 14.
Qh4 {[%clk 0:02:24.9]} 14... e4 {[%clk 0:02:38.2]} 15. Ne5 {[%clk 0:02:24.8]}
15... Bf5 {[%clk 0:02:35.6]} 16. Rae1 {[%clk 0:02:24.3]} 16... c5 {[%clk
0:02:21.1]} 17. Qf4 {[%clk 0:01:48.1]} 17... cxd4 {[%clk 0:02:04.7]} 18. Qxf5
{[%clk 0:01:47.4]} 18... Qxe5 {[%clk 0:02:01.1]} 19. Qxe5 {[%clk 0:01:47.3]}
19... Bxe5 {[%clk 0:02:00.2]} 20. Bxe4 {[%clk 0:01:47.3]} 20... Nxe4 {[%clk
0:01:59.3]} 21. Rxe4 {[%clk 0:01:47.6]} 21... f5 {[%clk 0:01:47.5]} 22. Re2
{[%clk 0:01:42.7]} 22... Kf7 {[%clk 0:01:46.4]} 23. Rd1 {[%clk 0:01:33.2]} 23...
Rad8 {[%clk 0:01:31.8]} 24. Red2 {[%clk 0:01:32.9]} 24... f4 {[%clk 0:01:13.9]}
25. Kg2 {[%clk 0:01:23.8]} 25... fxg3 {[%clk 0:01:12.6]} 26. hxg3 {[%clk
0:01:23.6]} 26... g5 {[%clk 0:01:07.9]} 27. Bxd4 {[%clk 0:01:23.2]} 27... Bxd4
{[%clk 0:01:07.3]} 28. Rxd4 {[%clk 0:01:23.3]} 28... Rxd4 {[%clk 0:01:06.1]} 29.
Rxd4 {[%clk 0:01:23.3]} 29... Re7 {[%clk 0:01:06.3]} 30. Rd6 {[%clk 0:01:19.8]}
30... Kg7 {[%clk 0:00:59.7]} 31. a4 {[%clk 0:01:17.1]} 31... b6 {[%clk
0:00:58.2]} 32. a5 {[%clk 0:01:04.2]} 32... bxa5 {[%clk 0:00:55.8]} 33. Ra6
{[%clk 0:01:04.5]} 33... Rb7 {[%clk 0:00:55.7]} 34. Rxa5 {[%clk 0:01:04.9]}
34... Rxb3 {[%clk 0:00:54.5]} 35. Rxg5+ {[%clk 0:01:05]} 35... Kf6 {[%clk
0:00:52.6]} 36. Ra5 {[%clk 0:01:05.4]} 36... Rb7 {[%clk 0:00:44.6]} 37. Kf3
{[%clk 0:01:04.9]} 37... Rc7 {[%clk 0:00:44.7]} 38. Ra4 {[%clk 0:01:04.1]} 38...
Kf5 {[%clk 0:00:43.5]} 39. g4+ {[%clk 0:01:02.3]} 39... Ke5 {[%clk 0:00:43.3]}
40. Ke3 {[%clk 0:01:02.4]} 40... Rg7 {[%clk 0:00:40]} 41. f4+ {[%clk 0:01:00]}
41... Kd6 {[%clk 0:00:40.3]} 42. g5 {[%clk 0:00:57.7]} 42... Kc5 {[%clk
0:00:40.4]} 43. Kd3 {[%clk 0:00:57.1]} 43... Rf7 {[%clk 0:00:36.2]} 44. Ra5+
{[%clk 0:00:56.1]} 44... Kb6 {[%clk 0:00:33.7]} 45. Rb5+ {[%clk 0:00:54]} 45...
Kc6 {[%clk 0:00:34]} 46. f5 {[%clk 0:00:49.3]} 46... Rd7+ {[%clk 0:00:25.1]} 47.
Ke4 {[%clk 0:00:48.1]} 47... Re7+ {[%clk 0:00:24.9]} 48. Re5 {[%clk 0:00:45]}
48... Rf7 {[%clk 0:00:24.9]} 49. f6 {[%clk 0:00:43.3]} 49... Kd6 {[%clk
0:00:23.7]} 50. Kf5 {[%clk 0:00:43.1]} 50... Rc7 {[%clk 0:00:20.3]} 51. Re6+
{[%clk 0:00:37.9]} 51... Kc5 {[%clk 0:00:19.7]} 52. Re7 {[%clk 0:00:38.4]} 52...
Rc8 {[%clk 0:00:18.3]} 53. Rxa7 {[%clk 0:00:35.7]} 53... Kxc4 {[%clk 0:00:18.3]}
54. Rxh7 {[%clk 0:00:35.4]} 54... Kd5 {[%clk 0:00:19.2]} 55. f7 {[%clk
0:00:35.3]} 55... Rc1 {[%clk 0:00:18.6]} 56. Kf6 {[%clk 0:00:30.3]} 56... Rf1+
{[%clk 0:00:18.6]} 57. Kg7 {[%clk 0:00:30.4]} 1-0

[Event "*** Titled Tuesday Blitz"]
[Site "Chess.com"]
[Date "2020.10.20"]
[Round "4"]
[White "dopolian"]
[Black "kai_nov"]
[Result "1-0"]
[WhiteElo "2419"]
[BlackElo "2252"]
[TimeControl "180+1"]
[EndTime "10:41:38 PDT"]
[Termination "dopolian won on time"]

1. Nf3 {[%clk 0:03:00.9]} 1... c5 {[%clk 0:02:58.1]} 2. c4 {[%clk 0:03:00.5]}
2... Nc6 {[%clk 0:02:57.4]} 3. Nc3 {[%clk 0:02:59.3]} 3... e5 {[%clk 0:02:49.2]}
4. d3 {[%clk 0:02:57.2]} 4... d6 {[%clk 0:02:45]} 5. g3 {[%clk 0:02:56.9]} 5...
Be7 {[%clk 0:02:39.5]} 6. Bg2 {[%clk 0:02:55.6]} 6... Nf6 {[%clk 0:02:36]} 7.
O-O {[%clk 0:02:53.1]} 7... O-O {[%clk 0:02:35.5]} 8. a3 {[%clk 0:02:48]} 8...
h6 {[%clk 0:02:32.9]} 9. Rb1 {[%clk 0:02:44.7]} 9... a5 {[%clk 0:02:30.7]} 10.
Nd2 {[%clk 0:02:39.4]} 10... Be6 {[%clk 0:02:22.7]} 11. Nd5 {[%clk 0:02:37.7]}
11... a4 {[%clk 0:02:18.5]} 12. Nxf6+ {[%clk 0:02:31.8]} 12... Bxf6 {[%clk
0:02:18.1]} 13. Ne4 {[%clk 0:02:32]} 13... Be7 {[%clk 0:02:17.1]} 14. Nc3 {[%clk
0:02:30.1]} 14... Qa5 {[%clk 0:01:51.2]} 15. Bd2 {[%clk 0:02:26.5]} 15... f5
{[%clk 0:01:26.9]} 16. f4 {[%clk 0:02:13.3]} 16... exf4 {[%clk 0:01:22.2]} 17.
gxf4 {[%clk 0:02:12.2]} 17... Bf6 {[%clk 0:01:16.7]} 18. e3 {[%clk 0:02:11.4]}
18... Kh8 {[%clk 0:01:02.5]} 19. Re1 {[%clk 0:01:50.3]} 19... Bg8 {[%clk
0:00:57.2]} 20. Kh1 {[%clk 0:01:45.8]} 20... Ra6 {[%clk 0:00:40.5]} 21. Rg1
{[%clk 0:01:25.3]} 21... Re8 {[%clk 0:00:26.2]} 22. Qc2 {[%clk 0:01:24]} 22...
Qd8 {[%clk 0:00:22.3]} 23. Nxa4 {[%clk 0:01:17.3]} 23... d5 {[%clk 0:00:22.5]}
24. Nxc5 {[%clk 0:01:13.7]} 24... Rb6 {[%clk 0:00:20.4]} 25. cxd5 {[%clk
0:01:01.5]} 25... Bxd5 {[%clk 0:00:19.6]} 26. d4 {[%clk 0:00:58.9]} 26... Be4
{[%clk 0:00:18.1]} 27. Nxe4 {[%clk 0:00:53]} 27... fxe4 {[%clk 0:00:18.2]} 28.
Bxe4 {[%clk 0:00:53.3]} 28... Bxd4 {[%clk 0:00:13.3]} 29. exd4 {[%clk
0:00:50.4]} 29... Nxd4 {[%clk 0:00:13.5]} 30. Qd3 {[%clk 0:00:50.8]} 30... Rd6
{[%clk 0:00:13.2]} 31. Bb4 {[%clk 0:00:47.7]} 31... Rd7 {[%clk 0:00:10.8]} 32.
Rbd1 {[%clk 0:00:40.8]} 32... Qh4 {[%clk 0:00:09.3]} 33. Bc3 {[%clk 0:00:25.5]}
33... Red8 {[%clk 0:00:06.6]} 34. Qg3 {[%clk 0:00:19.1]} 34... Qe7 {[%clk
0:00:04.6]} 35. Rxd4 {[%clk 0:00:17.6]} 35... Rxd4 {[%clk 0:00:04.3]} 36. Bf3
{[%clk 0:00:14.1]} 36... R8d7 {[%clk 0:00:02.3]} 37. Bxd4 {[%clk 0:00:13.7]}
37... Rxd4 {[%clk 0:00:02.1]} 38. Re1 {[%clk 0:00:13.9]} 38... Qf7 {[%clk
0:00:01.4]} 39. Bg2 {[%clk 0:00:12.2]} 39... Rxf4 {[%clk 0:00:01.6]} 40. Qe3
{[%clk 0:00:07.9]} 40... Kh7 {[%clk 0:00:01.1]} 41. Be4+ {[%clk 0:00:07.1]} 1-0

[Event "*** Titled Tuesday Blitz"]
[Site "Chess.com"]
[Date "2020.10.20"]
[Round "4"]
[White "Snegokhod"]
[Black "Chessbard1972"]
[Result "1-0"]
[WhiteElo "2445"]
[BlackElo "2298"]
[TimeControl "180+1"]
[EndTime "10:41:40 PDT"]
[Termination "Snegokhod won by resignation"]

1. e4 {[%clk 0:03:00.9]} 1... c5 {[%clk 0:02:59.2]} 2. Nf3 {[%clk 0:03:00.1]}
2... a6 {[%clk 0:02:59.4]} 3. c3 {[%clk 0:02:59.6]} 3... d5 {[%clk 0:02:59]} 4.
exd5 {[%clk 0:02:59.1]} 4... Qxd5 {[%clk 0:02:59.5]} 5. d4 {[%clk 0:02:59.5]}
5... Nf6 {[%clk 0:02:59.7]} 6. Be2 {[%clk 0:02:58.1]} 6... Bg4 {[%clk
0:02:59.1]} 7. c4 {[%clk 0:02:55.9]} 7... Qd6 {[%clk 0:02:58.1]} 8. d5 {[%clk
0:02:55.2]} 8... e6 {[%clk 0:02:57.7]} 9. Nc3 {[%clk 0:02:55]} 9... exd5 {[%clk
0:02:57.3]} 10. cxd5 {[%clk 0:02:54.8]} 10... Be7 {[%clk 0:02:54.4]} 11. O-O
{[%clk 0:02:54.4]} 11... O-O {[%clk 0:02:53.7]} 12. g3 {[%clk 0:02:54.9]} 12...
Nbd7 {[%clk 0:02:42]} 13. Bf4 {[%clk 0:02:54.4]} 13... Qb6 {[%clk 0:02:41.8]}
14. d6 {[%clk 0:02:54.4]} 14... Bd8 {[%clk 0:02:41.2]} 15. Qd2 {[%clk
0:02:32.4]} 15... Re8 {[%clk 0:02:37.2]} 16. Rfe1 {[%clk 0:02:31.7]} 16... Qc6
{[%clk 0:02:28.2]} 17. Ng5 {[%clk 0:02:21.5]} 17... Ba5 {[%clk 0:02:20.5]} 18.
Bc4 {[%clk 0:02:17.9]} 18... Bh5 {[%clk 0:02:16.6]} 19. Re7 {[%clk 0:02:14.2]}
19... Rxe7 {[%clk 0:02:12.8]} 20. dxe7 {[%clk 0:02:14.2]} 20... Re8 {[%clk
0:02:12.7]} 21. Re1 {[%clk 0:02:13.1]} 21... h6 {[%clk 0:02:10.1]} 22. Nh3
{[%clk 0:01:22.4]} 22... b5 {[%clk 0:01:48.3]} 23. Bf1 {[%clk 0:01:06]} 23...
Bf3 {[%clk 0:01:43.6]} 24. Bxh6 {[%clk 0:01:02.3]} 24... Ne4 {[%clk 0:01:37.1]}
25. Rxe4 {[%clk 0:01:01.3]} 25... Bxe4 {[%clk 0:01:32.7]} 26. Bxg7 {[%clk
0:00:46.3]} 26... Kxg7 {[%clk 0:01:30.1]} 27. Qg5+ {[%clk 0:00:45.3]} 27... Bg6
{[%clk 0:01:20.6]} 28. Nd5 {[%clk 0:00:39.1]} 28... Nf6 {[%clk 0:01:09.1]} 29.
Nhf4 {[%clk 0:00:36.3]} 29... Ne4 {[%clk 0:01:04.4]} 30. Nh5+ {[%clk 0:00:23]}
30... Kh7 {[%clk 0:00:58.5]} 31. Ndf6+ {[%clk 0:00:22.6]} 31... Nxf6 {[%clk
0:00:56.8]} 32. Nxf6+ {[%clk 0:00:22.8]} 32... Kg7 {[%clk 0:00:54.1]} 33. Nh5+
{[%clk 0:00:20.9]} 33... Kg8 {[%clk 0:00:53.3]} 34. Qh6 {[%clk 0:00:20.2]} 34...
Bxh5 {[%clk 0:00:36.2]} 35. Qxc6 {[%clk 0:00:20.1]} 35... Rxe7 {[%clk
0:00:34.9]} 36. Qxc5 {[%clk 0:00:20.6]} 36... Re6 {[%clk 0:00:28]} 37. Qxh5
{[%clk 0:00:20.4]} 37... Bb6 {[%clk 0:00:28.9]} 38. Qg4+ {[%clk 0:00:19.2]}
38... Kf8 {[%clk 0:00:28]} 39. Kg2 {[%clk 0:00:19.7]} 39... Rf6 {[%clk
0:00:27.9]} 40. f4 {[%clk 0:00:19.9]} 40... Re6 {[%clk 0:00:28.2]} 41. h4 {[%clk
0:00:20]} 41... Rd6 {[%clk 0:00:27.8]} 42. h5 {[%clk 0:00:19.7]} 42... Bd4
{[%clk 0:00:27.8]} 43. b3 {[%clk 0:00:19.3]} 43... Bg7 {[%clk 0:00:27.8]} 44.
Qc8+ {[%clk 0:00:19.4]} 44... Ke7 {[%clk 0:00:27.5]} 45. Be2 {[%clk 0:00:19.6]}
45... Rd2 {[%clk 0:00:26.8]} 46. Kf3 {[%clk 0:00:19.5]} 46... Rd8 {[%clk
0:00:26.1]} 47. Qxa6 {[%clk 0:00:18.8]} 47... Rd6 {[%clk 0:00:25.4]} 48. Qxb5
{[%clk 0:00:18.9]} 48... Re6 {[%clk 0:00:25]} 49. Bc4 {[%clk 0:00:17.5]} 49...
Rd6 {[%clk 0:00:24.7]} 50. Qb7+ {[%clk 0:00:17.2]} 50... Rd7 {[%clk 0:00:24.4]}
51. Qxd7+ {[%clk 0:00:17.2]} 51... Kxd7 {[%clk 0:00:24.4]} 52. Bxf7 {[%clk
0:00:17.9]} 52... Kd6 {[%clk 0:00:24.7]} 53. Bc4 {[%clk 0:00:18.8]} 53... Kc5
{[%clk 0:00:24.9]} 54. g4 {[%clk 0:00:19.7]} 54... Kb4 {[%clk 0:00:25.7]} 55. g5
{[%clk 0:00:20.2]} 55... Ka3 {[%clk 0:00:26.6]} 56. h6 {[%clk 0:00:20]} 56...
Kxa2 {[%clk 0:00:27.5]} 57. hxg7 {[%clk 0:00:20]} 1-0